{"text_format":"3","workbook":"xlsx","n_sheets":3,"sheets":["Inngående post","Drum","Ark3"],"not_rendered":{"charts":2,"images":2,"external_links":1},"read":"whole","date_system":"1900"}

{"sheet":"Inngående post","index":0,"n_rows":81,"n_cols":7,"rows_kept":81,"merged":[[3,1,3,4],[5,1,5,4],[7,1,7,4]]}
[]
["Risikovurdering"]
[]
["Enhet:","HÁL"]
[]
["Mål:","Inngående post - herunder også e-post"]
[]
["KSF:"]
[]
[null,"Nr","Tekst","Sannsynlighet","Konsekvens","sannsynlighet","konsekvens"]
[null,1,"Postmottak - for lite folk","Moderat","Moderat",{"$f":"LOOKUP(D11,$D$69:$E$74)","v":2.5},{"$f":"LOOKUP(E11,$D$76:$E$81)","v":2.5}]
[null,2,"Pakkemottak","Moderat","Lav",2.5,1.5]
[null,3,"Poståpning - for lite folk, fare for underslag","Meget liten","Alvorlig",0.5,3.5]
[null,4,"Poståpning - skille ut arkivuvverdig post","Liten","Lav",1.5,1.5]
[null,5,"Skanning - Manglende kontroll kan gi dårlig kvalitet, blanding mellom hoveddokument og vedlegg","Liten","Lav",1.5,1.5]
[null,6,"Skanning - Blir ikke skannet","Liten","Moderat",1.5,2.5]
[null,7,"Journalføring av post blir nedprioritert","Moderat","Lav",2.5,1.5]
[null,8,"Journalføring av e-post blir nedprioritert","Moderat","Lav",2.5,1.5]
[null,9,"For dårlige søk av saker og journalposter medfører dobbeltføring","Moderat","Moderat",2.5,2.5]
[null,10,"Sametingets mailboks - søppelpost og spam-mail","Moderat","Moderat",2.5,2.5]
[{"$nulls":5},{"$error":"#N/A"},{"$error":"#N/A"}]
[{"$nulls":5},{"$error":"#N/A"},{"$error":"#N/A"}]
[{"$nulls":5},{"$error":"#N/A"},{"$error":"#N/A"}]
[{"$nulls":5},{"$error":"#N/A"},{"$error":"#N/A"}]
[{"$nulls":5},{"$error":"#N/A"},{"$error":"#N/A"}]
[{"$nulls":5},{"$error":"#N/A"},{"$error":"#N/A"}]
[{"$nulls":5},{"$error":"#N/A"},{"$error":"#N/A"}]
[{"$nulls":5},{"$error":"#N/A"},{"$error":"#N/A"}]
[]
[]
[]
[null,"Nr","Tiltak","Prioritering","Ansvar og frist"]
[null,1,"Følge vaktlisten, reserve trår til med fravær","Høy","Vaktlisten"]
[null,1,"Ved langtidsfravær - sette inn stedfortredere evnt. vikar","Høy","GANV"]
[null,2,"Sørge for at både resepsjon, vaktmester og arkiv er klar over rutinene. ","Moderat","GANV"]
[null,3,"Følge vaktlisten, reserve trår til med fravær","Høy","Vaktlisten"]
[null,"4 og 5","Trenger ikke tiltak"]
[null,6,"Posten legges på skannerbordet","Moderat","Ark. i Karasjok"]
[null,"7 og 8","Trenger ikke tiltak"]
[null,9,"Følg rutinene ved registrering","Høy","Arkivet"]
[null,9,"Følg opp søk i systemet og dobbeltsjekk","Høy","Arkivet"]
[null,10,"Kontroller og  journalfør de som er havnet feil i spamboksen","Moderat","arkivet"]
[null,11]
{"$rows_empty":9}
[{"$nulls":3},"Prioritering: Lav - Medium - Høy"]
[]
[{"$nulls":3},"--",0]
[{"$nulls":3},"Meget liten",0.5]
[{"$nulls":3},"Liten",1.5]
[{"$nulls":3},"Moderat",2.5]
[{"$nulls":3},"Stor",3.5]
[{"$nulls":3},"Svært stor",4.5]
[]
[{"$nulls":3},"--",0]
[{"$nulls":3},"Ubetydelig",0.5]
[{"$nulls":3},"Lav",1.5]
[{"$nulls":3},"Moderat",2.5]
[{"$nulls":3},"Alvorlig",3.5]
[{"$nulls":3},"Svært alvorlig",4.5]
[]
[{"$nulls":3},"--",0]
[{"$nulls":3},"Liten",1.5]
[{"$nulls":3},"Meget liten",0.5]
[{"$nulls":3},"Moderat",2.5]
[{"$nulls":3},"Stor",3.5]
[{"$nulls":3},"Svært stor",4.5]
[]
[{"$nulls":3},"--",0]
[{"$nulls":3},"Alvorlig",3.5]
[{"$nulls":3},"Lav",1.5]
[{"$nulls":3},"Moderat",2.5]
[{"$nulls":3},"Svært alvorlig",4.5]
[{"$nulls":3},"Ubetydelig",0.5]

{"sheet":"Drum","index":1,"n_rows":81,"n_cols":7,"rows_kept":81,"merged":[[3,1,3,4],[5,1,5,4],[7,1,7,4]]}
[]
["Risikovurdering"]
[]
["Enhet:"]
[]
["Mål:","Åpenhet i Sametinget (drum)"]
[]
["KSF:"]
[]
[null,"Nr","Tekst","Sannsynlighet","Konsekvens","sannsynlighet","konsekvens"]
[null,1,"Manglende kontroll - for lite folk","Liten","Alvorlig",{"$f":"LOOKUP(D11,$D$69:$E$74)","v":1.5},{"$f":"LOOKUP(E11,$D$76:$E$81)","v":3.5}]
[null,2,"Drum er ikke kjørt - har ikke startet opp","Moderat","Lav",2.5,1.5]
[null,3,"Manglede kompetanse ","Liten","Alvorlig",1.5,3.5]
[null,4,"For lav kapasitet på drum-maskinen","Liten","Lav",1.5,1.5]
[null,5,"Database ikke OK, men legger likevel ut på nett","Liten","Svært alvorlig",1.5,4.5]
[null,6,{"$nulls":3},{"$error":"#N/A"},{"$error":"#N/A"}]
[null,7,{"$nulls":3},{"$error":"#N/A"},{"$error":"#N/A"}]
[null,8,{"$nulls":3},{"$error":"#N/A"},{"$error":"#N/A"}]
[null,9,{"$nulls":3},{"$error":"#N/A"},{"$error":"#N/A"}]
[{"$nulls":5},{"$error":"#N/A"},{"$error":"#N/A"}]
[{"$nulls":5},{"$error":"#N/A"},{"$error":"#N/A"}]
[{"$nulls":5},{"$error":"#N/A"},{"$error":"#N/A"}]
[{"$nulls":5},{"$error":"#N/A"},{"$error":"#N/A"}]
[{"$nulls":5},{"$error":"#N/A"},{"$error":"#N/A"}]
[{"$nulls":5},{"$error":"#N/A"},{"$error":"#N/A"}]
[{"$nulls":5},{"$error":"#N/A"},{"$error":"#N/A"}]
[{"$nulls":5},{"$error":"#N/A"},{"$error":"#N/A"}]
[{"$nulls":5},{"$error":"#N/A"},{"$error":"#N/A"}]
[]
[]
[]
[null,"Nr","Tiltak","Prioritering","Ansvar og frist"]
[null,1,"Alltid to personer skal kontrollere drum - med reserve hvis fravær","Høy","GANV. Fortløpende"]
[null,2,"Ingen tiltak - kan startes manuelt"]
[null,3,"Opplæring gis til alle nyansatte på arkiv.","Høy","GANV. Fortløpende"]
[null,4,"IT må ha overvåkning av kapasitet på maskin","Moderat","IT"]
[null,5,"Kjøre hele prosessen på nytt - med kontroll","Høy","Etter vaktliste"]
[null,6]
[null,7]
[null,8]
[null,9]
[null,10]
[null,11]
{"$rows_empty":9}
[{"$nulls":3},"Prioritering: Lav - Medium - Høy"]
[]
[{"$nulls":3},"--",0]
[{"$nulls":3},"Meget liten",0.5]
[{"$nulls":3},"Liten",1.5]
[{"$nulls":3},"Moderat",2.5]
[{"$nulls":3},"Stor",3.5]
[{"$nulls":3},"Svært stor",4.5]
[]
[{"$nulls":3},"--",0]
[{"$nulls":3},"Ubetydelig",0.5]
[{"$nulls":3},"Lav",1.5]
[{"$nulls":3},"Moderat",2.5]
[{"$nulls":3},"Alvorlig",3.5]
[{"$nulls":3},"Svært alvorlig",4.5]
[]
[{"$nulls":3},"--",0]
[{"$nulls":3},"Liten",1.5]
[{"$nulls":3},"Meget liten",0.5]
[{"$nulls":3},"Moderat",2.5]
[{"$nulls":3},"Stor",3.5]
[{"$nulls":3},"Svært stor",4.5]
[]
[{"$nulls":3},"--",0]
[{"$nulls":3},"Alvorlig",3.5]
[{"$nulls":3},"Lav",1.5]
[{"$nulls":3},"Moderat",2.5]
[{"$nulls":3},"Svært alvorlig",4.5]
[{"$nulls":3},"Ubetydelig",0.5]

{"sheet":"Ark3","index":2,"n_rows":0,"n_cols":0,"rows_kept":0}